[Event "Early-Titled-Tuesday-Blitz-February-27-2024"]
[Site "Chess.com"]
[Date "2024.02.27"]
[Round "2"]
[White "chezzgirl04"]
[Black "Licancabur"]
[Result "0-1"]
[WhiteElo "2093"]
[BlackElo "2457"]
[TimeControl "180+1"]
[EndTime "8:17:51 PST"]
[Termination "Licancabur won by checkmate"]

1. e4 {[%clk 0:03:00.9]} 1... Nf6 {[%clk 0:02:58.3]} 2. e5 {[%clk 0:03:00]} 2...
Nd5 {[%clk 0:02:57.7]} 3. d4 {[%clk 0:02:59.8]} 3... d6 {[%clk 0:02:56.8]} 4. c4
{[%clk 0:02:58.9]} 4... Nb6 {[%clk 0:02:56.5]} 5. f4 {[%clk 0:02:58.1]} 5...
dxe5 {[%clk 0:02:56.9]} 6. fxe5 {[%clk 0:02:58]} 6... Nc6 {[%clk 0:02:57.5]} 7.
Nf3 {[%clk 0:02:57.8]} 7... Bg4 {[%clk 0:02:57.2]} 8. Be3 {[%clk 0:02:44.9]}
8... e6 {[%clk 0:02:56.8]} 9. Nc3 {[%clk 0:02:38.7]} 9... Bxf3 {[%clk
0:02:49.9]} 10. Qxf3 {[%clk 0:02:38]} 10... Nxd4 {[%clk 0:02:48.5]} 11. Bxd4
{[%clk 0:02:38]} 11... Qxd4 {[%clk 0:02:48.4]} 12. Qxb7 {[%clk 0:02:38.6]} 12...
Bc5 {[%clk 0:02:19.9]} 13. Qc6+ {[%clk 0:02:35.7]} 13... Kf8 {[%clk 0:02:07.3]}
14. Ne4 {[%clk 0:02:35.1]} 14... Qe3+ {[%clk 0:01:59.7]} 15. Be2 {[%clk
0:02:35.1]} 15... Bb4+ {[%clk 0:01:47.5]} 16. Kf1 {[%clk 0:02:34.7]} 16... Rd8
{[%clk 0:01:25.5]} 17. Qxc7 {[%clk 0:02:19.7]} 17... Rd7 {[%clk 0:01:07.4]} 18.
Qb8+ {[%clk 0:01:53.4]} 18... Ke7 {[%clk 0:01:06.4]} 19. Qxh8 {[%clk 0:01:52.9]}
19... Qxe4 {[%clk 0:01:04.6]} 20. Qxg7 {[%clk 0:01:51.7]} 20... Rd2 {[%clk
0:00:45.5]} 21. Qf6+ {[%clk 0:01:41.8]} 21... Ke8 {[%clk 0:00:42.9]} 22. Qh8+
{[%clk 0:01:39.7]} 22... Kd7 {[%clk 0:00:37.9]} 23. Re1 {[%clk 0:01:27.2]} 23...
Qf4+ {[%clk 0:00:31.9]} 24. Bf3 {[%clk 0:01:25.1]} 24... Qxc4+ {[%clk
0:00:31.9]} 25. Be2 {[%clk 0:01:20.2]} 25... Qf4+ {[%clk 0:00:26.7]} 26. Bf3
{[%clk 0:01:18.7]} 26... Nd5 {[%clk 0:00:25.3]} 27. Qa8 {[%clk 0:00:41.9]} 27...
Qc4+ {[%clk 0:00:21.9]} 28. Be2 {[%clk 0:00:38.6]} 28... Ne3+ {[%clk 0:00:19.8]}
29. Kf2 {[%clk 0:00:34]} 29... Ng4+ {[%clk 0:00:13.8]} 30. Kf1 {[%clk
0:00:28.6]} 30... Qf4+ {[%clk 0:00:13]} 31. Qf3 {[%clk 0:00:25.8]} 31... Ne3+
{[%clk 0:00:12.3]} 32. Kg1 {[%clk 0:00:16.9]} 32... Qd4 {[%clk 0:00:11.3]} 33.
Qxf7+ {[%clk 0:00:16.2]} 33... Be7 {[%clk 0:00:11.4]} 34. Qf3 {[%clk 0:00:15.5]}
34... Nd1+ {[%clk 0:00:09.6]} 35. Kf1 {[%clk 0:00:13]} 35... Ne3+ {[%clk
0:00:09.7]} 36. Kf2 {[%clk 0:00:10.3]} 36... Ng4+ {[%clk 0:00:08.4]} 37. Kf1
{[%clk 0:00:10.2]} 37... Bh4 {[%clk 0:00:06.8]} 38. Qf7+ {[%clk 0:00:08.2]}
38... Be7 {[%clk 0:00:06.3]} 39. Qf3 {[%clk 0:00:07.3]} 39... Ne3+ {[%clk
0:00:05.8]} 40. Kf2 {[%clk 0:00:06.9]} 40... Nd5+ {[%clk 0:00:06]} 41. Kf1
{[%clk 0:00:06.8]} 41... Rxb2 {[%clk 0:00:06.2]} 42. Qd3 {[%clk 0:00:05.8]}
42... Ne3+ {[%clk 0:00:06.2]} 43. Kg1 {[%clk 0:00:05.8]} 43... Qxd3 {[%clk
0:00:05.9]} 44. Bxd3 {[%clk 0:00:02.8]} 44... Rxg2# {[%clk 0:00:06.2]} 0-1

[Event "Early-Titled-Tuesday-Blitz-February-27-2024"]
[Site "Chess.com"]
[Date "2024.02.27"]
[Round "2"]
[White "GM_Levan_Pantsulaia"]
[Black "BursaBBSatranc"]
[Result "1/2-1/2"]
[WhiteElo "2951"]
[BlackElo "2633"]
[TimeControl "180+1"]
[EndTime "8:17:55 PST"]
[Termination "Game drawn by repetition"]

1. Nf3 {[%clk 0:03:00.9]} 1... d5 {[%clk 0:03:00]} 2. c4 {[%clk 0:03:00.8]} 2...
c6 {[%clk 0:03:00.3]} 3. g3 {[%clk 0:03:01.1]} 3... Nf6 {[%clk 0:03:00.6]} 4.
Bg2 {[%clk 0:03:00.5]} 4... Bf5 {[%clk 0:03:00.6]} 5. cxd5 {[%clk 0:02:58.1]}
5... cxd5 {[%clk 0:03:01.5]} 6. Qb3 {[%clk 0:02:58.3]} 6... Qb6 {[%clk
0:03:01.4]} 7. Qxb6 {[%clk 0:02:58.1]} 7... axb6 {[%clk 0:03:02.3]} 8. Nc3
{[%clk 0:02:58.4]} 8... e6 {[%clk 0:02:56]} 9. d3 {[%clk 0:02:57.8]} 9... Be7
{[%clk 0:02:47.3]} 10. Nb5 {[%clk 0:02:55.3]} 10... O-O {[%clk 0:02:42.8]} 11.
Nfd4 {[%clk 0:02:52.1]} 11... Bg6 {[%clk 0:02:38.2]} 12. f4 {[%clk 0:02:52]}
12... Nc6 {[%clk 0:02:37.9]} 13. h3 {[%clk 0:02:47]} 13... Nxd4 {[%clk
0:02:33.1]} 14. Nxd4 {[%clk 0:02:46.4]} 14... Bb4+ {[%clk 0:02:31]} 15. Bd2
{[%clk 0:02:46.1]} 15... Bxd2+ {[%clk 0:02:26.8]} 16. Kxd2 {[%clk 0:02:47]}
16... Rfc8 {[%clk 0:02:26.6]} 17. a3 {[%clk 0:02:46.1]} 17... Nd7 {[%clk
0:01:58.9]} 18. g4 {[%clk 0:02:36.5]} 18... Nf6 {[%clk 0:01:33.4]} 19. Rac1
{[%clk 0:02:33.8]} 19... h5 {[%clk 0:01:29]} 20. g5 {[%clk 0:02:16.2]} 20... Ne8
{[%clk 0:01:21.2]} 21. Nf3 {[%clk 0:01:33.1]} 21... f6 {[%clk 0:00:46.7]} 22.
Nh4 {[%clk 0:01:32.6]} 22... Kf7 {[%clk 0:00:47.2]} 23. f5 {[%clk 0:01:26.5]}
23... Bxf5 {[%clk 0:00:39.9]} 24. Nxf5 {[%clk 0:01:25.9]} 24... exf5 {[%clk
0:00:40.8]} 25. Bxd5+ {[%clk 0:01:25.2]} 25... Ke7 {[%clk 0:00:41.3]} 26. Bxb7
{[%clk 0:01:20.4]} 26... Rxc1 {[%clk 0:00:41.9]} 27. Rxc1 {[%clk 0:01:20.2]}
27... Rd8 {[%clk 0:00:40.5]} 28. gxf6+ {[%clk 0:01:16.9]} 28... Kxf6 {[%clk
0:00:38.2]} 29. h4 {[%clk 0:01:13.8]} 29... g5 {[%clk 0:00:37.4]} 30. hxg5+
{[%clk 0:01:11.7]} 30... Kxg5 {[%clk 0:00:37.5]} 31. Rg1+ {[%clk 0:01:09.4]}
31... Kf6 {[%clk 0:00:34.2]} 32. Bf3 {[%clk 0:00:59.9]} 32... Ng7 {[%clk
0:00:33.4]} 33. b4 {[%clk 0:00:52.4]} 33... h4 {[%clk 0:00:31.1]} 34. a4 {[%clk
0:00:50.4]} 34... Ne6 {[%clk 0:00:28.1]} 35. a5 {[%clk 0:00:48.3]} 35... bxa5
{[%clk 0:00:28.3]} 36. bxa5 {[%clk 0:00:49.2]} 36... Nd4 {[%clk 0:00:27.2]} 37.
Ke3 {[%clk 0:00:45.3]} 37... Nxf3 {[%clk 0:00:22.2]} 38. Kxf3 {[%clk 0:00:46.2]}
38... Ra8 {[%clk 0:00:17.8]} 39. Ra1 {[%clk 0:00:45.6]} 39... Ra6 {[%clk
0:00:16.7]} 40. Kf4 {[%clk 0:00:41.7]} 40... Ke6 {[%clk 0:00:17.3]} 41. d4
{[%clk 0:00:31.1]} 41... Kf6 {[%clk 0:00:13.8]} 42. e3 {[%clk 0:00:23.4]} 42...
Ke6 {[%clk 0:00:13.7]} 43. Rh1 {[%clk 0:00:21.1]} 43... Rxa5 {[%clk 0:00:12.9]}
44. Rxh4 {[%clk 0:00:21.7]} 44... Kf6 {[%clk 0:00:10.7]} 45. Rh6+ {[%clk
0:00:21.6]} 45... Kg7 {[%clk 0:00:11.1]} 46. Rd6 {[%clk 0:00:21.7]} 46... Kf7
{[%clk 0:00:11.4]} 47. d5 {[%clk 0:00:22]} 47... Ra3 {[%clk 0:00:10.1]} 48. Re6
{[%clk 0:00:20.2]} 48... Rd3 {[%clk 0:00:07.8]} 49. Re5 {[%clk 0:00:20.4]} 49...
Kg6 {[%clk 0:00:07.4]} 50. Re6+ {[%clk 0:00:16.1]} 50... Kf7 {[%clk 0:00:07.4]}
51. Rd6 {[%clk 0:00:06.9]} 51... Ke7 {[%clk 0:00:07.1]} 52. Re6+ {[%clk
0:00:07]} 52... Kf7 {[%clk 0:00:07.5]} 1/2-1/2

[Event "Early-Titled-Tuesday-Blitz-February-27-2024"]
[Site "Chess.com"]
[Date "2024.02.27"]
[Round "2"]
[White "Cheer_Down"]
[Black "matagordo"]
[Result "1/2-1/2"]
[WhiteElo "2496"]
[BlackElo "2226"]
[TimeControl "180+1"]
[EndTime "8:17:55 PST"]
[Termination "Game drawn by repetition"]

1. e4 {[%clk 0:02:56.4]} 1... e6 {[%clk 0:02:57.9]} 2. d4 {[%clk 0:02:55.8]}
2... d5 {[%clk 0:02:57.2]} 3. Nc3 {[%clk 0:02:55.8]} 3... Nf6 {[%clk 0:02:57.2]}
4. e5 {[%clk 0:02:55.3]} 4... Nfd7 {[%clk 0:02:57.3]} 5. Nce2 {[%clk 0:02:55.9]}
5... c5 {[%clk 0:02:57.7]} 6. c3 {[%clk 0:02:55.3]} 6... Nc6 {[%clk 0:02:58.3]}
7. Nf3 {[%clk 0:02:54.5]} 7... Rb8 {[%clk 0:02:58.5]} 8. Nf4 {[%clk 0:02:25.1]}
8... b5 {[%clk 0:02:56.4]} 9. Be3 {[%clk 0:02:23.4]} 9... Be7 {[%clk 0:02:56.2]}
10. h4 {[%clk 0:02:20.4]} 10... a5 {[%clk 0:02:55.7]} 11. h5 {[%clk 0:02:14.1]}
11... Qc7 {[%clk 0:02:51.8]} 12. a3 {[%clk 0:02:04.9]} 12... Qa7 {[%clk
0:02:51]} 13. h6 {[%clk 0:02:00.9]} 13... g6 {[%clk 0:02:49.3]} 14. Bd3 {[%clk
0:01:53.4]} 14... Kd8 {[%clk 0:02:46.7]} 15. O-O {[%clk 0:01:49.5]} 15... c4
{[%clk 0:02:39.2]} 16. Be2 {[%clk 0:01:37.6]} 16... a4 {[%clk 0:02:31.1]} 17.
Nh3 {[%clk 0:01:34.5]} 17... Kc7 {[%clk 0:02:20.7]} 18. Bg5 {[%clk 0:01:34]}
18... Ba6 {[%clk 0:02:08.6]} 19. Bxe7 {[%clk 0:01:31.2]} 19... Nxe7 {[%clk
0:02:09.5]} 20. Nfg5 {[%clk 0:01:23.4]} 20... Rbf8 {[%clk 0:02:08.6]} 21. Nf4
{[%clk 0:01:22.1]} 21... Nf5 {[%clk 0:02:06.9]} 22. Bg4 {[%clk 0:01:17.7]} 22...
Nxh6 {[%clk 0:02:04.7]} 23. Bxe6 {[%clk 0:01:16.6]} 23... fxe6 {[%clk
0:02:01.2]} 24. Ngxe6+ {[%clk 0:01:13]} 24... Kc8 {[%clk 0:02:01.7]} 25. Nxd5
{[%clk 0:01:09.8]} 25... Bb7 {[%clk 0:01:52]} 26. Ne7+ {[%clk 0:00:56.3]} 26...
Kb8 {[%clk 0:01:48.8]} 27. Qd2 {[%clk 0:00:43]} 27... Nf5 {[%clk 0:01:31.5]} 28.
Nxf8 {[%clk 0:00:40.7]} 28... Rxf8 {[%clk 0:01:32.4]} 29. Nxf5 {[%clk
0:00:28.1]} 29... Rxf5 {[%clk 0:01:29]} 30. f4 {[%clk 0:00:27.9]} 30... Bd5
{[%clk 0:01:24.6]} 31. g4 {[%clk 0:00:27.7]} 31... Rf7 {[%clk 0:01:08.2]} 32.
Kh2 {[%clk 0:00:23.2]} 32... Nf8 {[%clk 0:01:02.8]} 33. f5 {[%clk 0:00:22.5]}
33... Qe7 {[%clk 0:01:01]} 34. Qh6 {[%clk 0:00:19]} 34... Be4 {[%clk 0:00:42.6]}
35. e6 {[%clk 0:00:13.9]} 35... Rf6 {[%clk 0:00:37.2]} 36. Qf4+ {[%clk
0:00:11.4]} 36... Ka7 {[%clk 0:00:30.8]} 37. Qxe4 {[%clk 0:00:09.8]} 37... gxf5
{[%clk 0:00:31.4]} 38. gxf5 {[%clk 0:00:08.7]} 38... Rh6+ {[%clk 0:00:31.1]} 39.
Kg3 {[%clk 0:00:06.9]} 39... Qg5+ {[%clk 0:00:29.6]} 40. Qg4 {[%clk 0:00:07.2]}
40... Qe3+ {[%clk 0:00:30.2]} 41. Rf3 {[%clk 0:00:07.5]} 41... Qd2 {[%clk
0:00:28.3]} 42. Qg7+ {[%clk 0:00:07.1]} 42... Kb6 {[%clk 0:00:23.6]} 43. Qxh6
{[%clk 0:00:04]} 43... Qxh6 {[%clk 0:00:23.6]} 44. Re1 {[%clk 0:00:03.3]} 44...
Qg5+ {[%clk 0:00:19.6]} 45. Kf2 {[%clk 0:00:03.6]} 45... Qh4+ {[%clk 0:00:17.5]}
46. Kf1 {[%clk 0:00:04]} 46... Qg4 {[%clk 0:00:16.3]} 47. Kf2 {[%clk 0:00:03.2]}
47... Qh4+ {[%clk 0:00:15.9]} 48. Kf1 {[%clk 0:00:03.7]} 48... Qg4 {[%clk
0:00:14.8]} 49. Kf2 {[%clk 0:00:04.2]} 49... Qh4+ {[%clk 0:00:03.4]} 1/2-1/2

[Event "Early-Titled-Tuesday-Blitz-February-27-2024"]
[Site "Chess.com"]
[Date "2024.02.27"]
[Round "2"]
[White "Grandmaster1369"]
[Black "elchacal664"]
[Result "0-1"]
[WhiteElo "2775"]
[BlackElo "2434"]
[TimeControl "180+1"]
[EndTime "8:17:58 PST"]
[Termination "elchacal664 won on time"]

1. e4 {[%clk 0:03:00.9]} 1... d5 {[%clk 0:02:52.7]} 2. exd5 {[%clk 0:03:00.4]}
2... Qxd5 {[%clk 0:02:53.6]} 3. Nc3 {[%clk 0:03:00]} 3... Qd6 {[%clk 0:02:53.9]}
4. d4 {[%clk 0:03:00.1]} 4... a6 {[%clk 0:02:53.8]} 5. Nf3 {[%clk 0:02:58.9]}
5... Nf6 {[%clk 0:02:54.1]} 6. g3 {[%clk 0:02:58.8]} 6... b5 {[%clk 0:02:53]} 7.
Bg2 {[%clk 0:02:57.8]} 7... Bb7 {[%clk 0:02:52.9]} 8. O-O {[%clk 0:02:57.5]}
8... e6 {[%clk 0:02:53.2]} 9. Bf4 {[%clk 0:02:56.3]} 9... Qb6 {[%clk 0:02:53.1]}
10. a4 {[%clk 0:02:54.8]} 10... Bd6 {[%clk 0:02:49.6]} 11. a5 {[%clk 0:02:52.3]}
11... Qa7 {[%clk 0:02:42.9]} 12. Be3 {[%clk 0:02:48.7]} 12... Nd5 {[%clk
0:02:34.7]} 13. Nxd5 {[%clk 0:02:36.8]} 13... Bxd5 {[%clk 0:02:35.6]} 14. Ng5
{[%clk 0:02:36.1]} 14... Bxg2 {[%clk 0:02:18.5]} 15. Kxg2 {[%clk 0:02:37]} 15...
Qb7+ {[%clk 0:02:17.3]} 16. Kg1 {[%clk 0:02:09.6]} 16... h6 {[%clk 0:02:15.8]}
17. Qh5 {[%clk 0:02:07.7]} 17... O-O {[%clk 0:01:42.2]} 18. Nh3 {[%clk
0:01:51.6]} 18... Qd5 {[%clk 0:01:35.3]} 19. Qxd5 {[%clk 0:01:51.1]} 19... exd5
{[%clk 0:01:35.3]} 20. Bf4 {[%clk 0:01:51.7]} 20... Bxf4 {[%clk 0:01:34.6]} 21.
Nxf4 {[%clk 0:01:52.6]} 21... c6 {[%clk 0:01:26.2]} 22. Rfe1 {[%clk 0:01:52.9]}
22... Nd7 {[%clk 0:01:14.1]} 23. Re7 {[%clk 0:01:52.5]} 23... Rfd8 {[%clk
0:01:12.8]} 24. Rae1 {[%clk 0:01:52.7]} 24... Kf8 {[%clk 0:01:12.2]} 25. Nd3
{[%clk 0:01:52.2]} 25... Rac8 {[%clk 0:01:09.1]} 26. Nb4 {[%clk 0:01:35.8]}
26... Nb8 {[%clk 0:01:04.1]} 27. Rb7 {[%clk 0:01:28.5]} 27... Rd6 {[%clk
0:01:03.3]} 28. Rb6 {[%clk 0:01:23.8]} 28... Rf6 {[%clk 0:00:58.2]} 29. Nxa6
{[%clk 0:01:21.4]} 29... Nxa6 {[%clk 0:00:57.3]} 30. Rxa6 {[%clk 0:01:22.2]}
30... c5 {[%clk 0:00:57.7]} 31. dxc5 {[%clk 0:01:20]} 31... Rxa6 {[%clk
0:00:57.2]} 32. b4 {[%clk 0:01:19.8]} 32... Re6 {[%clk 0:00:55.6]} 33. Rd1
{[%clk 0:01:15.7]} 33... Re4 {[%clk 0:00:54.7]} 34. c3 {[%clk 0:01:14.2]} 34...
Rc4 {[%clk 0:00:52.9]} 35. Rd3 {[%clk 0:01:12.1]} 35... d4 {[%clk 0:00:53.1]}
36. cxd4 {[%clk 0:01:05.8]} 36... Rxb4 {[%clk 0:00:53.1]} 37. Kg2 {[%clk
0:00:51.8]} 37... Ra4 {[%clk 0:00:52.5]} 38. Kf3 {[%clk 0:00:46.7]} 38... b4
{[%clk 0:00:48.7]} 39. Ke4 {[%clk 0:00:44.3]} 39... Ra3 {[%clk 0:00:47.8]} 40.
Rd1 {[%clk 0:00:43.8]} 40... b3 {[%clk 0:00:47.2]} 41. Rb1 {[%clk 0:00:41.6]}
41... Rxa5 {[%clk 0:00:43.9]} 42. Rxb3 {[%clk 0:00:40.5]} 42... Re8+ {[%clk
0:00:43.3]} 43. Kd3 {[%clk 0:00:29.7]} 43... Rd8 {[%clk 0:00:42.4]} 44. c6
{[%clk 0:00:20]} 44... Rc5 {[%clk 0:00:36.5]} 45. Rb6 {[%clk 0:00:03.8]} 45...
Rd6 {[%clk 0:00:33.8]} 46. Rb8+ {[%clk 0:00:01.6]} 46... Ke7 {[%clk 0:00:32.9]}
47. Rb7+ {[%clk 0:00:01.5]} 47... Ke6 {[%clk 0:00:28.6]} 48. c7 {[%clk
0:00:01.6]} 48... Rc1 {[%clk 0:00:23.3]} 49. Kd2 {[%clk 0:00:01.6]} 49... Rdc6
{[%clk 0:00:22.3]} 50. d5+ {[%clk 0:00:01.2]} 50... Kxd5 {[%clk 0:00:22.1]} 51.
Rb5+ {[%clk 0:00:01.3]} 51... Kd6 {[%clk 0:00:21.5]} 52. Rf5 {[%clk 0:00:01.4]}
52... R1c2+ {[%clk 0:00:19.9]} 0-1

[Event "Early-Titled-Tuesday-Blitz-February-27-2024"]
[Site "Chess.com"]
[Date "2024.02.27"]
[Round "2"]
[White "edgarhay012"]
[Black "dropstoneDP"]
[Result "0-1"]
[WhiteElo "2638"]
[BlackElo "3039"]
[TimeControl "180+1"]
[EndTime "8:17:59 PST"]
[Termination "dropstoneDP won by resignation"]

1. e4 {[%clk 0:03:00.9]} 1... e5 {[%clk 0:03:00]} 2. Nf3 {[%clk 0:03:01]} 2...
Nf6 {[%clk 0:03:00.6]} 3. d3 {[%clk 0:02:56.9]} 3... d5 {[%clk 0:02:58.8]} 4.
exd5 {[%clk 0:02:56.7]} 4... Qxd5 {[%clk 0:02:59.7]} 5. Be2 {[%clk 0:02:56.9]}
5... Nc6 {[%clk 0:02:55.9]} 6. O-O {[%clk 0:02:56.8]} 6... Bf5 {[%clk
0:02:41.3]} 7. Nbd2 {[%clk 0:02:54.7]} 7... O-O-O {[%clk 0:02:40.6]} 8. Nc4
{[%clk 0:02:54.3]} 8... e4 {[%clk 0:02:39.7]} 9. Ne3 {[%clk 0:02:48.4]} 9... Qc5
{[%clk 0:02:34.1]} 10. Ne1 {[%clk 0:02:29.7]} 10... Bg6 {[%clk 0:02:31.1]} 11.
Bd2 {[%clk 0:02:16.4]} 11... Ne5 {[%clk 0:02:30.5]} 12. Bc3 {[%clk 0:02:10.6]}
12... exd3 {[%clk 0:02:25.5]} 13. cxd3 {[%clk 0:02:10.7]} 13... Qd6 {[%clk
0:02:20.8]} 14. Rc1 {[%clk 0:02:07.3]} 14... Kb8 {[%clk 0:02:18]} 15. Qa4 {[%clk
0:02:01.2]} 15... Qd7 {[%clk 0:02:05.8]} 16. Qb3 {[%clk 0:01:46.4]} 16... Nc6
{[%clk 0:02:05.6]} 17. Nf3 {[%clk 0:01:44.5]} 17... Nd5 {[%clk 0:02:01.2]} 18.
d4 {[%clk 0:01:12.8]} 18... Nxe3 {[%clk 0:01:47.4]} 19. fxe3 {[%clk 0:01:13.7]}
19... Bd6 {[%clk 0:01:44]} 20. Bd2 {[%clk 0:01:06.5]} 20... Ne7 {[%clk
0:01:34.5]} 21. Bb4 {[%clk 0:00:54.4]} 21... Bxb4 {[%clk 0:01:33.2]} 22. Qxb4
{[%clk 0:00:55.3]} 22... Nd5 {[%clk 0:01:33.8]} 23. Qb3 {[%clk 0:00:55.5]} 23...
f6 {[%clk 0:01:32.1]} 24. Bb5 {[%clk 0:00:45.1]} 24... Qe7 {[%clk 0:01:32.2]}
25. Rfe1 {[%clk 0:00:45]} 25... Ka8 {[%clk 0:01:14.2]} 26. a3 {[%clk 0:00:41.5]}
26... Qd6 {[%clk 0:01:05.8]} 27. Bf1 {[%clk 0:00:32.3]} 27... Rhe8 {[%clk
0:01:04]} 28. Rc5 {[%clk 0:00:27.2]} 28... c6 {[%clk 0:01:01.6]} 29. Rc4 {[%clk
0:00:13.9]} 29... Bf7 {[%clk 0:00:59.6]} 30. Qd3 {[%clk 0:00:10]} 30... Nxe3
{[%clk 0:00:42.4]} 31. Rb4 {[%clk 0:00:08.4]} 31... Nxf1 {[%clk 0:00:41.8]} 32.
Rxf1 {[%clk 0:00:09.3]} 32... Bd5 {[%clk 0:00:41.2]} 33. Rc1 {[%clk 0:00:08]}
33... Be4 {[%clk 0:00:33]} 34. Qb3 {[%clk 0:00:04.9]} 34... Bd5 {[%clk
0:00:21.3]} 35. Qc3 {[%clk 0:00:03.9]} 35... Qf4 {[%clk 0:00:20.7]} 36. Ra4
{[%clk 0:00:02.8]} 36... Qe3+ {[%clk 0:00:20.4]} 37. Qxe3 {[%clk 0:00:02.7]}
37... Rxe3 {[%clk 0:00:21.3]} 38. Kf2 {[%clk 0:00:03.4]} 38... Rde8 {[%clk
0:00:20.2]} 39. Rb4 {[%clk 0:00:03.6]} 39... Re2+ {[%clk 0:00:20]} 40. Kg3
{[%clk 0:00:04.3]} 40... a6 {[%clk 0:00:18.4]} 41. a4 {[%clk 0:00:04.2]} 41...
R8e3 {[%clk 0:00:18.5]} 42. a5 {[%clk 0:00:04.1]} 42... g5 {[%clk 0:00:17.7]}
43. h3 {[%clk 0:00:03.6]} 43... h5 {[%clk 0:00:18.1]} 44. Rc3 {[%clk 0:00:03.7]}
44... h4+ {[%clk 0:00:14.8]} 45. Kg4 {[%clk 0:00:02.2]} 45... Rxg2+ {[%clk
0:00:15.2]} 46. Kf5 {[%clk 0:00:02]} 46... Rxf3+ {[%clk 0:00:16.1]} 47. Rxf3
{[%clk 0:00:01]} 47... Bxf3 {[%clk 0:00:17]} 48. Ke6 {[%clk 0:00:01.7]} 48...
Bd5+ {[%clk 0:00:17.4]} 49. Kd7 {[%clk 0:00:02.3]} 49... Re2 {[%clk 0:00:15.7]}
50. Kc7 {[%clk 0:00:02.6]} 50... Re7+ {[%clk 0:00:16]} 51. Kb6 {[%clk
0:00:03.1]} 51... g4 {[%clk 0:00:14.7]} 52. hxg4 {[%clk 0:00:03.2]} 52... h3
{[%clk 0:00:15.2]} 53. Rb3 {[%clk 0:00:02.3]} 53... Bxb3 {[%clk 0:00:15]} 54. g5
{[%clk 0:00:02.6]} 54... h2 {[%clk 0:00:14.5]} 0-1

[Event "Early-Titled-Tuesday-Blitz-February-27-2024"]
[Site "Chess.com"]
[Date "2024.02.27"]
[Round "2"]
[White "abelmat"]
[Black "Aisen1011"]
[Result "0-1"]
[WhiteElo "2080"]
[BlackElo "2455"]
[TimeControl "180+1"]
[EndTime "8:18:02 PST"]
[Termination "Aisen1011 won on time"]

1. d4 {[%clk 0:03:00.9]} 1... d5 {[%clk 0:02:59.1]} 2. c4 {[%clk 0:03:00.9]}
2... c6 {[%clk 0:02:59.2]} 3. Nf3 {[%clk 0:03:00.8]} 3... Nf6 {[%clk 0:02:59]}
4. Nc3 {[%clk 0:03:00.8]} 4... a6 {[%clk 0:02:58.9]} 5. e3 {[%clk 0:02:59.1]}
5... b5 {[%clk 0:02:59.2]} 6. cxd5 {[%clk 0:02:58.2]} 6... cxd5 {[%clk
0:02:59.3]} 7. Bd3 {[%clk 0:02:58.6]} 7... Bg4 {[%clk 0:02:58.7]} 8. O-O {[%clk
0:02:58.3]} 8... e6 {[%clk 0:02:58.9]} 9. h3 {[%clk 0:02:55.1]} 9... Bh5 {[%clk
0:02:58]} 10. a4 {[%clk 0:02:50.1]} 10... b4 {[%clk 0:02:54.9]} 11. Ne2 {[%clk
0:02:49.6]} 11... Bxf3 {[%clk 0:02:54.9]} 12. gxf3 {[%clk 0:02:50.5]} 12... Nbd7
{[%clk 0:02:51.4]} 13. e4 {[%clk 0:02:47.4]} 13... e5 {[%clk 0:02:18.3]} 14.
exd5 {[%clk 0:02:29.7]} 14... Bd6 {[%clk 0:02:13.6]} 15. Ng3 {[%clk 0:02:11.6]}
15... O-O {[%clk 0:02:08.3]} 16. Ne4 {[%clk 0:02:06.9]} 16... Nxe4 {[%clk
0:02:05.7]} 17. fxe4 {[%clk 0:02:01.6]} 17... exd4 {[%clk 0:01:58]} 18. f4
{[%clk 0:01:59.7]} 18... f6 {[%clk 0:01:51.2]} 19. Qg4 {[%clk 0:01:57.9]} 19...
Nc5 {[%clk 0:01:47.9]} 20. Bc4 {[%clk 0:01:50.3]} 20... Kh8 {[%clk 0:01:43.6]}
21. Re1 {[%clk 0:01:40.8]} 21... Re8 {[%clk 0:01:41.9]} 22. Qf3 {[%clk
0:01:21.3]} 22... Qc7 {[%clk 0:01:41.1]} 23. Bd2 {[%clk 0:01:03.8]} 23... Qb8
{[%clk 0:01:30]} 24. b3 {[%clk 0:00:58.5]} 24... Ra7 {[%clk 0:01:25.5]} 25. Re2
{[%clk 0:00:57.7]} 25... Rae7 {[%clk 0:01:21.3]} 26. Rae1 {[%clk 0:00:57.5]}
26... d3 {[%clk 0:01:16.5]} 27. Bxd3 {[%clk 0:00:35]} 27... Nxb3 {[%clk
0:01:16.1]} 28. e5 {[%clk 0:00:15.7]} 28... Bc5+ {[%clk 0:01:02.4]} 29. Kh1
{[%clk 0:00:13.9]} 29... fxe5 {[%clk 0:00:59.6]} 30. Qe4 {[%clk 0:00:13.6]}
30... g6 {[%clk 0:00:55.7]} 31. f5 {[%clk 0:00:13.4]} 31... gxf5 {[%clk
0:00:50.5]} 32. Qxf5 {[%clk 0:00:13.1]} 32... Rf8 {[%clk 0:00:35.7]} 33. Qh5
{[%clk 0:00:08.8]} 33... Bd4 {[%clk 0:00:04.8]} 34. Bg5 {[%clk 0:00:07.7]} 34...
Ref7 {[%clk 0:00:03.4]} 35. Rg2 {[%clk 0:00:07.2]} 35... e4 {[%clk 0:00:01.8]}
36. Be2 {[%clk 0:00:05.7]} 36... Rf1+ {[%clk 0:00:02.2]} 37. Bxf1 {[%clk
0:00:03.5]} 37... Qe5 {[%clk 0:00:01.3]} 38. Qg4 {[%clk 0:00:02]} 38... Rg8
{[%clk 0:00:01.3]} 39. Be2 {[%clk 0:00:01.6]} 39... h6 {[%clk 0:00:01.7]} 40.
Qh5 {[%clk 0:00:01.1]} 40... Rxg5 {[%clk 0:00:02.3]} 0-1